Cogmind - Beta 16 @@@ ROGUE MODE // 2025.11.19 @ 07:45:59 Player: Demo Result: Destroyed by Decapitator with Experimental Terror Saw Performance ------------- Evolutions (8) 4000 Regions Visited (25) 5000 Robots Destroyed (202) 1010 Value Destroyed (10723) 10723 Prototype IDs (61) 1220 Alien Tech Used (2) 400 Bonus (14005) 14005 TOTAL SCORE: 36358 Bonus ------- Pacifist 470 High Alert Combat Kills 3165 Follower Combat Kills 3667 Entered DSFs 500 Network Hubs Disabled 200 Registered with UFD 300 Met Optimus in HQ 500 Met Warlord at Base 500 MAIN.C Attacked Warlord 500 Warlord Defense Kills 1204 Built Enhanced Grunts 300 A7 Reached Mainframe 300 Met R17 at Cetus 500 Met R17 at Research 2000 Scanned by Researcher 500 Friendly Fire -601 Cogmind --------- Core Integrity 0/1450 Matter 244/300 Energy 98/100 System Corruption 51% Temperature Cool (3) Movement Flying (27) Location -2/Protoforge Parts ------- > --- POWER (2) -------- (None) > --- PROPULSION (6) --- Cooled Q-thruster > --- UTILITY (10) ----- Machine Analyzer Spectral Analyzer Advanced Signal Interpreter Improved Salvage Targeting Computer Experimental Armor Integrity Analyzer Graphene Brace > --- WEAPON (5) ------- (None) > --- INVENTORY (5) ---- Core Cannon Enhanced Hardcell Cannon Compact Linear Accelerator Lance Peak State ------------ > --- POWER ------------ Heavy Antimatter Reactor Quantum Reactor > --- PROPULSION ------- Myomer Leg Myomer Leg Improved Thunder Leg Centrium Leg Centrium Leg Centrium Leg > --- UTILITY ---------- Advanced Heat Sink Coolant Network High-capacity Storage Unit Improved Salvage Targeting Computer Advanced Target Analyzer Core Analyzer Experimental Armor Integrity Analyzer Graphene Brace Experimental Hardlight Generator > --- WEAPON ----------- Precision Phase Gun Enhanced Quantum Rifle Enhanced Quantum Rifle Enhanced Quantum Rifle Enhanced Quantum Rifle > --- INVENTORY -------- Micro Antimatter Reactor Quantum Reactor Vortex Chain Reactor Compact Wheel Experimental Matter Compressor Spectral Analyzer Long-range Sensor Array Recoil Stabilizer Improved Kinecellerator Stealth Drone Bay Gamma Rifle Tachyon Dispersion Ray Phase Gun Matter Neutralizer Matter Neutralizer Enhanced Hardcell Cannon Advanced Remote Datajack Improved Plasma Cutter [Rating: 191] Favorites ----------- Power Quantum Reactor Engine Backup Power III Power Core Neutrino Core Reactor Quantum Reactor Propulsion Enhanced Armored Leg Treads Medium Treads Leg Enhanced Armored Leg Wheel Wheel Flight Unit Impulse Thruster Utility Improved Salvage Targeting Computer Device Advanced Heat Sink Storage Large Storage Unit Processor Improved Salvage Targeting Computer Hackware System Shield Protection Improved Heavy Armor Plating Weapon Coil Gun Energy Gun Enhanced Quantum Rifle Energy Cannon Vortex Cannon Ballistic Gun Coil Gun Ballistic Cannon Heavy Gauss Cannon Launcher Gamma Bomb Array Special Weapon Advanced Remote Datajack Impact Weapon Power Maul Slashing Weapon Ionic Axe Piercing Weapon Lance Build | -11 -10 -9 -8 -8 -8 -8 -6 -6 -5 -5 -5 -5 -5 -5 -5 -4 -4 -4 -4 -3 -3 -3 -2 -2 -2 ------- Run | Yrd Mat Mat Mat Sto Rec Scr Fac DSF Fac Was Fac Ext Cet Arc Hub Fac Upp Upp War Pro Res Tes Res Qua Frg Slots Evolved 16 | . . 2 2 . . . 4 . 2 . . . . . . 2 . . . . 2 . 2 . . Power 1 | . . . . . . . 1 . . . . . . . . . . . . . . . . . . Propulsion 4 | . . 2 2 . . . . . . . . . . . . . . . . . . . . . . Utility 8 | . . . . . . . 3 . 2 . . . . . . . . . . . 1 . 2 . . Weapon 3 | . . . . . . . . . . . . . . . . 2 . . . . 1 . . . . Parts Attached 247 | . . 3 8 9 1 10 . 9 3 7 . 10 5 4 1 35 2 1 14 2 13 42 57 7 4 Power 20 | . . . . 1 . . . . . 2 . . 2 . . 2 . . 1 . . 5 6 1 . Engine 2 | . . . . 1 . . . . . 1 . . . . . . . . . . . . . . . Core 1 | . . . . . . . . . . 1 . . . . . . . . . . . . . . . Reactor 17 | . . . . . . . . . . . . . 2 . . 2 . . 1 . . 5 6 1 . Propulsion 74 | . . 3 4 3 . 5 . 3 1 1 . 2 . 2 1 15 1 . 3 . 4 6 14 3 3 Treads 18 | . . . 2 2 . 3 . 3 . 1 . 2 . 2 1 2 . . . . . . . . . Leg 38 | . . . 1 . . 1 . . 1 . . . . . . 11 1 . 3 . 4 6 8 . 2 Wheel 7 | . . 3 . . . . . . . . . . . . . 2 . . . . . . 2 . . Hover . | . . . . . . . . . . . . . . . . . . . . . . . . . . Flight 11 | . . . 1 1 . 1 . . . . . . . . . . . . . . . . 4 3 1 Utility 84 | . . . 2 4 1 2 . 4 2 3 . 6 . . . 12 . 1 5 . 6 17 16 3 . Device 38 | . . . . . . . . . 1 1 . . . . . 7 . . 3 . 2 11 11 2 . Storage 6 | . . . . . . . . . 1 . . . . . . . . . . . 1 3 1 . . Processor 18 | . . . 1 . 1 1 . 4 . . . 1 . . . 2 . . 1 . 2 1 3 1 . Hackware 2 | . . . 1 . . 1 . . . . . . . . . . . . . . . . . . . Protection 20 | . . . . 4 . . . . . 2 . 5 . . . 3 . 1 1 . 1 2 1 . . Artifact . | . . . . . . . . . . . . . . . . . . . . . . . . . . Weapon 69 | . . . 2 1 . 3 . 2 . 1 . 2 3 2 . 6 1 . 5 2 3 14 21 . 1 Energy Gun 19 | . . . . . . . . . . . . . . . . 1 . . 3 . . 5 10 . . Energy Cannon 8 | . . . . . . . . . . . . . . . . . . . 2 . . 1 4 . 1 Ballistic Gun 22 | . . . . . . . . . . . . 2 2 2 . 5 . . . 1 2 7 1 . . Ballistic Cannon 3 | . . . . . . . . . . . . . . . . . . . . 1 . . 2 . . Launcher 3 | . . . . . . . . . . . . . . . . . . . . . 1 . 2 . . Special Weapon 3 | . . . . . . . . . . . . . 1 . . . 1 . . . . 1 . . . Impact Weapon 9 | . . . 2 1 . 3 . 2 . 1 . . . . . . . . . . . . . . . Slashing Weapon 1 | . . . . . . . . . . . . . . . . . . . . . . . 1 . . Piercing Weapon 1 | . . . . . . . . . . . . . . . . . . . . . . . 1 . . Special Melee Weapon . | . . . . . . . . . . . . . . . . . . . . . . . . . . Unidentified Prototypes 37 | . . . . 3 . . . . 2 1 . . 1 . . 2 . . 7 . . 13 5 1 2 Corrupted Parts 17 | . . . 2 . . . . . . . . . . 2 . . . . . . . 11 2 . . System Corruption 79 | . . . 10 . . . . . . . . . . 3 . . . . . . . 61 5 . . Parts Lost 112 | . . . 3 4 . . . 3 . . . 1 . . . 16 1 5 . 1 1 21 45 4 7 Power 13 | . . . . . . . . . . . . 1 . . . 2 . 2 . . . 2 5 1 . Propulsion 31 | . . . 2 4 . . . 2 . . . . . . . 3 . . . . . 5 9 1 5 Utility 26 | . . . 1 . . . . 1 . . . . . . . 5 . . . . . 3 12 2 2 Weapon 42 | . . . . . . . . . . . . . . . . 6 1 3 . 1 1 11 19 . . Highest Loss Streak 13 | . . . 3 3 . . . 3 . . . 1 . . . 12 1 5 . 1 1 11 13 3 7 To Critical Strikes 4 | . . . . . . . . . . . . . . . . 3 . . . . . 1 . . . Average Backups 11 | . . 3 4 4 5 4 5 5 5 8 13 14 14 15 15 13 15 9 4 5 8 13 13 11 8 Power . | . . . . . . . . . . . . . . 1 . . . . . . . 1 1 . . Propulsion 1 | . . . . . . . . . . . 1 . . . . 1 4 2 1 2 1 . 1 4 3 Utility 6 | . . 3 2 2 3 2 3 3 2 5 8 10 11 10 10 11 10 5 2 2 5 9 5 2 . Weapon 1 | . . . 2 2 2 2 2 2 2 1 2 1 2 3 3 . . . . . . . 3 2 3 Tool/Special . | . . . . . . . . . . . . . . . . . . . . . . . . . . Unused Backups 54 | . . 1 4 . . . . 1 . 1 1 5 4 . 1 3 . 4 . . 2 5 19 1 2 Power 6 | . . . . . . . . . . . . . . . 1 . . . . . . 1 4 . . Propulsion 8 | . . . . . . . . . . . . 1 . . . . . 1 . . . . 5 . 1 Utility 29 | . . 1 4 . . . . . . 1 1 . 3 . . 3 . 3 . . 2 4 6 1 . Weapon 10 | . . . . . . . . 1 . . . 4 1 . . . . . . . . . 3 . 1 Tool/Special 1 | . . . . . . . . . . . . . . . . . . . . . . . 1 . . Average Slot Usage (%) 81 | . . 25 64 61 22 65 63 65 81 84 94 89 82 82 81 86 96 72 83 92 92 90 78 68 64 Engine 1 | . . . . 3 . . . . . 8 11 10 4 . . . . . . . . . . . . Reactor 4 | . . . . . . . . . . . . . 6 11 11 9 10 4 4 5 4 8 6 4 3 Treads 9 | . . . 10 21 . 18 20 27 29 29 29 29 29 29 28 9 . . . . . . . . . Leg 14 | . . . 1 6 . 4 6 3 2 . . . . . . 15 31 31 31 31 28 25 17 . 1 Wheel 1 | . . 25 25 7 . . . . . . . . . . . . . . . . . . . . . Flight 1 | . . . 1 4 9 14 13 5 . . . . . . . . . . . . . . 2 19 18 Device 6 | . . . . . . . . . 2 . . . . . . 9 10 7 10 10 9 7 13 14 11 Storage 3 | . . . . . . . . . 4 2 5 5 5 5 5 5 5 2 . . 3 4 3 4 3 Processor 15 | . . . 7 2 4 9 6 13 23 23 23 18 11 11 11 11 15 15 19 21 19 19 15 19 21 Protection 3 | . . . . 3 . . . . . 4 5 8 11 11 11 6 5 2 . 5 4 2 . . . Energy Gun 3 | . . . . . . . . . . . . . . . . . . . 9 6 2 2 10 . . Energy Cannon 1 | . . . . . . . . . . . . . . . . . . . 6 8 . . 1 . . Ballistic Gun 6 | . . . . . . . . . . . . 6 10 11 11 16 15 6 . 2 11 11 2 . . Impact Weapon 2 | . . . 12 12 9 13 9 7 11 8 11 3 . . . . . . . . . . . . . Peak Build Rating 191 | . . 3 16 28 11 38 38 50 66 85 80 94 112 113 115 141 118 118 140 140 145 157 191 132 148 Average Rating 110 | . . 2 12 15 9 28 35 40 59 71 79 88 105 112 113 117 114 85 117 137 137 141 149 124 117 On Entrance 73 | . . . 3 12 8 11 38 35 50 60 80 80 94 112 113 114 117 118 61 140 137 140 144 115 124 Avg Prop Armor Cover (%) 22 | . . 36 30 38 . 36 40 42 31 31 21 15 10 10 5 6 . 44 35 7 7 2 1 . 42 Naked Turns 96 | . 59 37 . . . . . . . . . . . . . . . . . . . . . . . Heaviest Build 144 | . . . 6 28 3 6 6 6 31 35 35 69 107 107 107 123 73 72 86 86 94 113 144 45 43 Greatest Support 177 | 3 3 3 30 82 5 19 10 140 140 75 75 75 75 75 135 177 125 125 125 88 143 160 171 49 49 Greatest Overweight (x) 5 | . . . . 2 . 1 . 1 1 . . . 1 1 1 5 . . . . . 2 1 . . Average Overweight (x) . | . . . . . . . . . . . . . . 1 . . . . . . . . . . . Largest Inventory Capacity 20 | 5 5 5 5 5 5 5 5 5 15 15 15 15 15 15 15 15 15 15 5 5 10 20 20 15 15 Average Capacity 13 | 5 5 5 5 5 5 5 5 5 14 9 15 15 15 15 15 15 15 9 5 5 9 18 18 15 13 Most Carried 20 | . 1 5 5 5 5 5 5 5 7 15 15 15 15 15 15 15 15 15 5 5 10 20 20 15 13 Average Carried 11 | . . 3 4 4 5 4 5 5 5 8 13 14 14 14 14 14 15 9 4 5 8 15 14 14 11 Final Capacity 20 | 5 5 5 5 5 5 5 5 5 15 15 15 15 15 15 15 15 15 5 5 5 10 20 15 15 5 Final Carried 20 | . 1 5 5 5 5 5 5 5 7 15 15 15 15 15 15 15 15 5 5 5 10 20 15 13 5 Class Distribution -------------------- 42% | Scavenger-Gunner 14% | Mutant 14% | Scavenger-Mutant 7% | Gladiator 7% | Scavenger-Tank 5% | Commander-Mutant 3% | Ninja Dominant Class ---------------- Mutant | -10/Materials Mutant | -9/Materials Mutant | -8/Materials Mutant | -8/Storage Mutant | -8/Recycling Mutant | -8/Scraptown Mutant | -6/Factory Mutant | -6/DSF Gladiator | -5/Factory Mutant | -5/Waste Gladiator | -5/Factory Scavenger-Mutant | -5/Extension Commander-Mutant | -5/Cetus Commander-Mutant | -5/Archives Scavenger-Mutant | -5/Hub_04(d) Scavenger-Tank | -4/Factory Scavenger-Gunner | -4/Upper Caves Scavenger-Mutant | -4/Upper Caves Scavenger-Gunner | -4/Warlord Scavenger-Gunner | -3/Proximity Caves Scavenger-Gunner | -3/Research Scavenger-Gunner | -3/Testing Scavenger-Gunner | -2/Research Scientist-Ninja | -2/Quarantine Scientist-Sprinter | -2/Protoforge Resources | -11 -10 -9 -8 -8 -8 -8 -6 -6 -5 -5 -5 -5 -5 -5 -5 -4 -4 -4 -4 -3 -3 -3 -2 -2 -2 ----------- Run | Yrd Mat Mat Mat Sto Rec Scr Fac DSF Fac Was Fac Ext Cet Arc Hub Fac Upp Upp War Pro Res Tes Res Qua Frg Matter Collected 7192 | 178 . . 75 102 40 88 . . . 195 . 237 138 92 91 1252 509 9 236 20 608 1997 1264 27 34 Remotely 972 | . . . . . . . . . . . . . . . . . . . . . . 880 92 . . Salvage Created 13516 | . . . 75 95 . . . . . . . 557 265 104 157 2243 856 147 431 103 1271 2112 4997 69 34 Parts 641 | . . . 5 2 . . . . . . . 15 16 6 7 111 26 7 14 4 47 116 255 2 8 Haulers Intercepted 11 | . . . 1 . . . . . . . . . . . . 1 . . . . 4 1 4 . . Recyclers Shooed 7 | . . . . . . . . . . . . . . . . . . . . . 2 1 4 . . Parts Field Recycled . | . . . . . . . . . . . . . . . . . . . . . . . . . . Retrieved Matter . | . . . . . . . . . . . . . . . . . . . . . . . . . . Parts Self-Destructed 24 | . . . . . . . . . . . . . . . . . 10 10 . 4 . . . . . Prevented . | . . . . . . . . . . . . . . . . . . . . . . . . . . Parts Restored . | . . . . . . . . . . . . . . . . . . . . . . . . . . Kills | -11 -10 -9 -8 -8 -8 -8 -6 -6 -5 -5 -5 -5 -5 -5 -5 -4 -4 -4 -4 -3 -3 -3 -2 -2 -2 ------- Run | Yrd Mat Mat Mat Sto Rec Scr Fac DSF Fac Was Fac Ext Cet Arc Hub Fac Upp Upp War Pro Res Tes Res Qua Frg Combat Hostiles Destroyed 133 | . . . 1 2 . . . . . . . 6 3 1 2 19 3 3 9 3 8 26 47 . . Melee 8 | . . . 1 2 . . . . . . . 1 . . . . . . . . . . 4 . . Guns 74 | . . . . . . . . . . . . 2 3 1 2 19 3 3 3 1 3 15 19 . . Cannons 18 | . . . . . . . . . . . . . . . . . . . 2 1 3 2 10 . . AOE 18 | . . . . . . . . . . . . . . . . . . . 4 1 2 3 8 . . Classes Destroyed 22 | . . . 2 2 . . . . . . . 3 1 . 1 6 . . 2 1 1 1 2 . . Worker 15 | . . . . . . . . . . . . . . . . 1 . . . . 2 5 7 . . Builder 18 | . . . . . . . . . . . . . . . . 2 . . . . 2 1 11 . 2 Hauler 11 | . . . 1 . . . . . . . . . . . . 1 . . . . 4 1 4 . . Recycler 11 | . . . . . . . . . . . . 1 . . . 3 . . . . 4 . 3 . . Mechanic 2 | . . . . 1 . . . . . . . . . . . 1 . . . . . . . . . Operator 2 | . . . . 1 . . . . . . . 1 . . . . . . . . . . . . . Watcher 4 | . . . . . . . . . . . . . 1 . . . . . . . . 2 1 . . Swarmer 15 | . . . 1 2 . . . . . . . . . . . . . 2 . . . 5 5 . . Cutter 2 | . . . . . . . . . . . . . . . 1 . . . . . . . 1 . . Grunt 40 | . . . . . . . . . . . . 2 . . 1 7 . . 3 2 2 2 21 . . Brawler 5 | . . . . . . . . . . . . . . . . 1 . 1 3 . . . . . . Duelist 2 | . . . . . . . . . . . . . . . . 1 . . 1 . . . . . . Researcher 4 | . . . . . . . . . . . . . . . . . . . . . . 3 . 1 . Sentry 8 | . . . . . . . . . . . . 4 . 1 . 1 . . . . 2 . . . . Demolisher 1 | . . . . . . . . . . . . . . . . . . . 1 . . . . . . Specialist 1 | . . . . . . . . . . . . . . . . . . . 1 . . . . . . Hunter 20 | . . . . . . . . . . . . . . . . 5 2 . . . 2 9 2 . . Programmer 29 | . . . . . . . . . . . . . . . . 4 1 . . . 1 10 13 . . Heavy 1 | . . . . . . . . . . . . . . . . . . . . . . . 1 . . Q-Series 3 | . . . . . . . . . . . . . . . . . . . . . . . 3 . . Behemoth 2 | . . . . . . . . . . . . . . . . . . . . 1 . . 1 . . Cetus Guard 3 | . . . . . . . . . . . . . 3 . . . . . . . . . . . . Striker 1 | . . . . . . . . . . . . . . . . . . . . . 1 . . . . Thug 1 | . . . . . . . . . . . . . . . 1 . . . . . . . . . . Commander 1 | . . . . . . . . . . . . . . . . . . . 1 . . . . . . Best Kill Streak 13 | . . . 1 1 . . . . . . . 2 4 1 2 8 2 3 7 2 4 7 13 1 2 Combat Bots Only 9 | . . . 1 1 . . . . . . . 2 3 1 2 5 2 3 7 2 3 4 9 . . Max Kills in Single Turn 4 | . . . 1 1 . . . . . . . 2 1 1 1 2 1 1 3 1 2 3 4 1 1 Gunslinging 1 | . . . . . . . . . . . . . . . . . . . 1 . . 1 1 . . Exploded 4 | . . . . . . . . . . . . . . . . . . . 3 1 1 2 4 . . Melee 1 | . . . 1 1 . . . . . . . 1 . . . . . . . . . . 1 . . Uniques/NPCs Destroyed . | . . . . . . . . . . . . . . . . . . . . . . . . . . Combat | -11 -10 -9 -8 -8 -8 -8 -6 -6 -5 -5 -5 -5 -5 -5 -5 -4 -4 -4 -4 -3 -3 -3 -2 -2 -2 -------- Run | Yrd Mat Mat Mat Sto Rec Scr Fac DSF Fac Was Fac Ext Cet Arc Hub Fac Upp Upp War Pro Res Tes Res Qua Frg Hostile Shots Fired 2073 | . . 2 100 131 . . . 10 . . 2 39 22 12 22 375 32 82 62 13 64 373 594 59 79 Missed 750 | . . 1 45 57 . . . 1 . . . 11 5 4 10 109 14 32 17 6 33 125 221 32 27 Hits 1323 | . . 1 55 74 . . . 9 . . 2 28 17 8 12 266 18 50 45 7 31 248 373 27 52 Melee 36 | . . . . . . . . . . . . 1 . . . 7 . 9 . . . . 4 . 15 Projectile 1287 | . . 1 55 74 . . . 9 . . 2 27 17 8 12 259 18 41 45 7 31 248 369 27 37 AOE 7 | . . . . . . . . . . . . . . . 3 . . . 3 . . . . . 1 Critical Strikes 71 | . . . . 3 . . . 1 . . . . . . 4 16 . 3 . . . 11 15 . 18 Actively Blocked 36 | . . . . . . . . . . . . . . . . . . . . . . 3 15 . 18 Part Disruptions 4 | . . . . . . . . . . . . . . . . . . . . . . 3 1 . . Actively Blocked 1 | . . . . . . . . . . . . . . . . . . . . . . 1 . . . Damage Taken 26604 | . . 15 504 966 . . . 424 . . 39 657 382 218 555 4383 297 1267 945 218 659 4899 7788 551 1837 Core 2870 | . . . 94 285 . . . 62 . . . 42 . . 24 244 . 120 92 . 58 406 963 210 270 Absorbed by Shields 2368 | . . . . 3 . . . . . . . 148 89 . . 688 . . . . . . 1440 . . Redirected to Shielding 106 | . . . . . . . . . . . . . . . . . . . . . . 106 . . . Ignored by Resistances 14 | . . . . 14 . . . . . . . . . . . . . . . . . . . . . Regen/Repaired (Parts) 1567 | . . . . 141 . . . . . . 19 323 122 105 306 173 . . 204 . 174 . . . . Core Remaining (%) 80 | 100 100 100 . . . 31 . 92 . . . . . . 93 . . . . 60 . 64 . . . Volleys Fired 431 | . . . . . . . . . . . . 16 11 4 9 93 35 7 16 10 36 85 109 . . Largest 5 | . . . . . . . . . . . . 2 2 2 2 4 4 3 4 4 5 5 5 . . Hottest 410 | . . . . . . . . . . . . 66 68 70 70 140 120 90 190 190 186 289 410 . . Shots Fired 1253 | . . . . . . . . . . . . 28 22 8 18 250 113 21 38 32 111 235 377 . . Gun 1073 | . . . . . . . . . . . . 28 22 8 18 250 113 21 32 12 75 179 315 . . Cannon 147 | . . . . . . . . . . . . . . . . . . . 6 20 32 38 51 . . Launcher 30 | . . . . . . . . . . . . . . . . . . . . . 4 15 11 . . Special 3 | . . . . . . . . . . . . . . . . . . . . . . 3 . . . Kinetic 736 | . . . . . . . . . . . . 28 22 8 18 221 113 21 . . 93 174 38 . . Thermal 340 | . . . . . . . . . . . . . . . . 29 . . . . . 29 282 . . Explosive . | . . . . . . . . . . . . . . . . . . . . . . . . . . Electromagnetic 90 | . . . . . . . . . . . . . . . . . . . . . 4 29 57 . . Entropic 84 | . . . . . . . . . . . . . . . . . . . 38 32 14 . . . . Robot Hit Streak 33 | . . . . . . . . . . . . 3 6 3 4 22 33 22 9 9 14 12 24 . . Robot Miss Streak 8 | . . . . . . . . . . . . 5 2 5 3 4 3 2 4 2 8 7 4 . . Penetration Max 2 | . . . . . . . . . . . . 1 1 . 1 1 2 1 2 . 1 1 . . . Secondary Targets 27 | . . . . . . . . . . . . . 1 . 2 10 1 2 2 . . 3 6 . . Max Gunslinging Chain 1 | . . . . . . . . . . . . . 1 . 1 1 1 1 1 . . 1 1 . . Shots Hit Robots 823 | . . . 4 4 . . . . . . . 27 14 3 7 166 82 17 27 22 66 131 245 6 2 Core Hits 468 | . . . 3 1 . . . . . . . 12 7 1 10 69 25 6 24 8 44 98 158 1 1 Critical Kills 22 | . . . . . . . . . . . . . 2 . 1 8 3 1 . . 2 2 3 . . Critical Parts Destroyed 51 | . . . . 1 . . . . . . . 5 1 . 1 13 7 2 4 2 3 9 3 . . Critical Strikes 103 | . . . . 1 . . . . . . . 5 5 . 2 21 10 3 6 3 12 18 17 . . Burn 8 | . . . . . . . . . . . . . . . . . . . . . . 2 6 . . Destroy 63 | . . . . . . . . . . . . 1 5 . 2 21 10 3 . . 4 11 6 . . Blast 10 | . . . . . . . . . . . . . . . . . . . . . 7 3 . . . Corrupt 4 | . . . . . . . . . . . . . . . . . . . . . . 2 2 . . Smash 5 | . . . . 1 . . . . . . . 4 . . . . . . . . . . . . . Sever 1 | . . . . . . . . . . . . . . . . . . . . . . . 1 . . Impale 2 | . . . . . . . . . . . . . . . . . . . . . . . 2 . . Detonate 7 | . . . . . . . . . . . . . . . . . . . 4 2 1 . . . . Sunder 3 | . . . . . . . . . . . . . . . . . . . 2 1 . . . . . Melee Attacks 90 | . . . 5 10 . . . . . . . 15 . . . . . . . . . . 36 16 8 Impact 30 | . . . 5 10 . . . . . . . 15 . . . . . . . . . . . . . Slashing 4 | . . . . . . . . . . . . . . . . . . . . . . . 4 . . Piercing 56 | . . . . . . . . . . . . . . . . . . . . . . . 32 16 8 Sneak Attacks 11 | . . . 1 1 . . . . . . . 2 . . . . . . . . . . 4 1 2 Combat Hostiles . | . . . . . . . . . . . . . . . . . . . . . . . . . . Follow-up Attacks 1 | . . . . . . . . . . . . 1 . . . . . . . . . . . . . Damage Inflicted 31193 | . . . 206 199 . . . . . . . 1089 482 106 503 4439 1673 393 2652 1486 2539 5082 9867 305 172 Guns 19506 | . . . . . . . . . . . . 431 482 106 272 4400 1673 393 1263 392 1359 2997 5738 . . Cannons 4159 | . . . . . . . . . . . . . . . . . . . 377 805 816 684 1477 . . Explosions 4618 | . . . . . . . . . . . . . . . 231 . . . 1012 289 317 1305 1464 . . Melee 2260 | . . . 181 158 . . . . . . . 658 . . . . . . . . . . 786 305 172 Ramming 650 | . . . 25 41 . . . . . . . . . . . 39 . . . . 47 96 402 . . Kinetic 12855 | . . . . . . . . . . . . 431 482 106 272 4065 1673 393 . . 1815 2950 668 . . Thermal 8506 | . . . . . . . . . . . . . . . . 335 . . 1012 289 184 510 6176 . . Explosive . | . . . . . . . . . . . . . . . . . . . . . . . . . . Electromagnetic 3725 | . . . . . . . . . . . . . . . 231 . . . . . 133 1526 1835 . . Impact 997 | . . . 181 158 . . . . . . . 658 . . . . . . . . . . . . . Slashing 171 | . . . . . . . . . . . . . . . . . . . . . . . 171 . . Piercing 1092 | . . . . . . . . . . . . . . . . . . . . . . . 615 305 172 Entropic 3197 | . . . . . . . . . . . . . . . . . . . 1640 1197 360 . . . . Highest Corruption 83 | . . . 14 14 14 14 . . . . . . . 3 4 4 4 4 5 . . 83 42 42 51 Average Corruption 18 | . . . 10 14 14 14 . . . . . . . 2 3 2 4 4 4 . . 35 17 42 42 Corruption Purged . | . . . . . . . . . . . . . . . . . . . . . . . . . . Corruption Blocked . | . . . . . . . . . . . . . . . . . . . . . . . . . . Effects 217 | . . . 2 16 1 . . . . . . . . 4 6 4 14 7 . . . 42 85 21 15 Message Errors 40 | . . . . 2 . . . . . . . . . 1 3 . 1 4 . . . 7 19 2 1 Matter Fused 48 | . . . 1 1 1 . . . . . . . . 1 2 . 7 1 . . . 14 15 3 2 Heat Flow Errors 22 | . . . . 4 . . . . . . . . . . . . 2 . . . . 3 8 2 3 Energy Discharges 24 | . . . . 2 . . . . . . . . . . . 3 . . . . . 4 10 4 1 Parts Rejected 6 | . . . . 1 . . . . . . . . . . . . . . . . . 2 3 . . Parts Fused 3 | . . . . 1 . . . . . . . . . . . . 1 . . . . . . . 1 Data Loss (minor) 18 | . . . . 1 . . . . . . . . . 2 . . 1 1 . . . 5 7 . 1 Data Loss (major) 7 | . . . . . . . . . . . . . . . 1 . . . . . . . 5 1 . Misfires 5 | . . . . . . . . . . . . . . . . 1 1 1 . . . . 2 . . Alerts 2 | . . . 1 . . . . . . . . . . . . . . . . . . . 1 . . Misdirections 30 | . . . . 4 . . . . . . . . . . . . . . . . . 1 10 9 6 Weapon Failures 12 | . . . . . . . . . . . . . . . . . 1 . . . . 6 5 . . Overload Shots . | . . . . . . . . . . . . . . . . . . . . . . . . . . Overflow Damage 762 | . . . 87 67 . . . . . . . 271 . . . . . . 30 . 40 48 153 16 50 Projectiles 122 | . . . . . . . . . . . . . . . . . . . . . 40 38 44 . . Explosions 50 | . . . . . . . . . . . . . . . . . . . 30 . . 10 10 . . Melee 590 | . . . 87 67 . . . . . . . 271 . . . . . . . . . . 99 16 50 Knockbacks 20 | . . . 2 . . . . . . . . 2 . . . . . . . . 4 8 4 . . Impact 7 | . . . 2 . . . . . . . . 2 . . . . . . . . . 2 1 . . Kinetic 12 | . . . . . . . . . . . . . . . . . . . . . 4 5 3 . . Secondary 1 | . . . . . . . . . . . . . . . . . . . . . . 1 . . . Self-Inflicted Damage 238 | . . . 12 20 . . . . . . . . . . 76 . . . . . 23 54 53 . . Shots 9 | . . . . . . . . . . . . . . . 1 . . . . . 2 5 1 . . Rammed 11 | . . . 5 6 . . . . . . . . . . . . . . . . . . . . . Targets Rammed 47 | . . . 5 6 . . . . . . . . . . . 2 . . . . 2 8 24 . . Kicked 36 | . . . . . . . . . . . . . . . . 2 . . . . 2 8 24 . . Crushed . | . . . . . . . . . . . . . . . . . . . . . . . . . . Highest Temperature 456 | . . . . 230 . . . . . . . 79 105 81 247 313 233 88 36 . 93 390 456 231 205 Average Temperature 76 | . . . . 85 . . . . . . . 27 37 36 111 85 26 34 21 . 30 117 83 102 98 Received Heat Transfer 2245 | . . 9 54 324 . . . . . . 18 139 9 36 94 351 . 286 213 9 51 139 396 9 108 Effects 14 | . . . . . . . . . . . . . . . 3 3 . . . . . 7 1 . . Shutdowns 4 | . . . . . . . . . . . . . . . . 1 . . . . . 2 1 . . Energy Bleed 1 | . . . . . . . . . . . . . . . . . . . . . . 1 . . . Interference 9 | . . . . . . . . . . . . . . . 3 2 . . . . . 4 . . . Siege Activations 1 | . . . . . . . . . . . . . 1 . . . . . . . . . . . . Total Turns 5 | . . . . . . . . . . . . . 5 . . . . . . . . . . . . Longest Duration 5 | . . . . . . . . . . . . . 5 . . . . . . . . . . . . Martial Activations . | . . . . . . . . . . . . . . . . . . . . . . . . . . Shielding Activations . | . . . . . . . . . . . . . . . . . . . . . . . . . . Robots Disrupted 4 | . . . . . . . . . . . . . . . . . . . . . . . 4 . . Combat Hostiles 3 | . . . . . . . . . . . . . . . . . . . . . . . 3 . . Robots Corrupted 21 | . . . . 2 . . . . . . . 5 . . 1 . . . . . . 6 7 . . Combat Hostiles 14 | . . . . . . . . . . . . 3 . . . . . . . . . 6 5 . . Parts Fried 40 | . . . . 5 . . . . . . . 5 . . . . . . . . . 15 15 . . Impact Corruptions 19 | . . . 2 4 . . . . . . . 10 . . . . . . . . . . 3 . . Robots Melted 2 | . . . . . . . . . . . . . . . . . . . . . . . 2 . . Combat Hostiles 1 | . . . . . . . . . . . . . . . . . . . . . . . 1 . . Parts Melted 35 | . . . . . . . . . . . . . . . . . . . . . . 6 29 . . Heat Transferred 9761 | . . . . . . . . . . . . . . . . 740 . . 700 200 100 1011 7010 . . Parts Sabotaged 4 | . . . . . . . . . . . . . . . . 2 . . . . . . 2 . . Parts Stolen . | . . . . . . . . . . . . . . . . . . . . . . . . . . Parts Stripped . | . . . . . . . . . . . . . . . . . . . . . . . . . . Power Chain Reactions 7 | . . . . . . . . . . . . . . . . . . . . . . 2 5 . . Alert | -11 -10 -9 -8 -8 -8 -8 -6 -6 -5 -5 -5 -5 -5 -5 -5 -4 -4 -4 -4 -3 -3 -3 -2 -2 -2 ------- Run | Yrd Mat Mat Mat Sto Rec Scr Fac DSF Fac Was Fac Ext Cet Arc Hub Fac Upp Upp War Pro Res Tes Res Qua Frg Maximum Alert Level 5 | . . . . 2 . . . . . . 1 2 2 1 2 3 . . . . . 3 5 4 3 Low Security (%) 33 | 100 100 100 100 66 100 . 100 100 100 100 62 41 . 2 37 . . . . . 100 18 . . . Level 1 14 | . . . . 27 . . . . . . 37 34 5 97 54 2 . . . . . 11 8 . . Level 2 17 | . . . . 6 . . . . . . . 23 94 . 8 7 . . . . . 37 13 . 28 Level 3 20 | . . . . . . . . . . . . . . . . 89 . . . . . 31 30 5 71 Level 4 7 | . . . . . . . . . . . . . . . . . . . . . . . 20 94 . Level 5 6 | . . . . . . . . . . . . . . . . . . . . . . . 27 . . High Security . | . . . . . . . . . . . . . . . . . . . . . . . . . . Max Security . | . . . . . . . . . . . . . . . . . . . . . . . . . . Peak Influence 1966 | . 15 20 63 424 154 . . 15 16 30 246 691 539 341 684 985 . . . . 103 821 1966 1240 785 Initial 1105 | . . . 5 13 154 . . . 7 . . 81 372 172 77 334 . . . . . 42 453 1105 665 Average 538 | . 3 3 12 207 146 . . 1 2 2 142 281 470 276 268 808 . . . . 33 483 1141 1172 731 Influence Increases 10611 | . 15 60 110 724 . . . 15 16 66 306 1089 372 209 807 1363 80 195 195 70 348 1438 2707 248 178 Destroy 0b10 Robot/C 4280 | . . . 20 180 . . . . . . 100 440 160 80 220 640 60 60 180 60 160 780 1120 20 . Destroy 0b10 Robot/NC 380 | . . . 5 10 . . . . . . 10 35 10 . 5 50 . . . . 60 45 140 . 10 Destroy Leader 686 | . . . 2 40 . . . . . . 10 56 . . 50 100 20 . . 10 58 114 226 . . Allied During Kill 1735 | . . . . 97 . . . . . . 119 498 170 80 275 228 . . . . . 99 169 . . Successful Hack 77 | . . . 8 7 . . . . 16 . . 11 . . . . . . . . . . 8 27 . Disable Machine 645 | . . . 15 30 . . . . . . 45 . 30 45 60 240 . . . . . 75 90 15 . Anti-Garrison Action 350 | . . . . 150 . . . . . . . . . . . . . . . . . 200 . . . Destroy Structure 838 | . . . . . . . . . . 66 22 34 2 4 182 90 . . . . 70 80 249 21 18 Partial Spotted 120 | . 15 30 15 15 . . . . . . . . . . . . . . . . . . . 15 30 Lose Combat Pursuer 1500 | . . 30 45 195 . . . 15 . . . 15 . . 15 15 . 135 15 . . 45 705 150 120 Influence Decreases 9918 | . 15 45 92 360 263 134 . . 31 66 140 588 607 420 344 1074 601 317 370 225 273 707 1547 1031 668 Entered New Map 4247 | . . . 10 20 243 134 . . 8 . . 85 295 260 144 350 361 87 330 155 . 33 353 861 518 Time Decay 3836 | . 15 45 52 140 20 . . . 23 46 100 458 262 140 80 374 230 180 40 70 273 444 644 120 80 Lost Part 1070 | . . . 30 40 . . . . . . . 10 . . . 160 10 50 . . . 210 450 40 70 Lost Ally 765 | . . . . 160 . . . . . 20 40 35 50 20 120 190 . . . . . 20 100 10 . Squads Dispatched 77 | . . 1 1 8 . . . . . . . 3 . . 2 6 . 1 . . 5 12 31 4 3 Investigation 12 | . . . . 3 . . . . . . . 1 . . . 1 . . . . 2 1 3 . 1 Extermination 14 | . . . . . . . . . . . . . . . . 2 . . . . . 4 7 1 . Reinforcement 35 | . . 1 1 3 . . . . . . . 2 . . 2 2 . . . . 3 6 10 3 2 Assault 12 | . . . . 2 . . . . . . . . . . . 1 . 1 . . . . 8 . . Garrison 4 | . . . . . . . . . . . . . . . . . . . . . . 1 3 . . Intercept . | . . . . . . . . . . . . . . . . . . . . . . . . . . Searches Triggered . | . . . . . . . . . . . . . . . . . . . . . . . . . . Construction Impeded 8 | . . . . . . . . . . . . 1 . . . . . . . . 1 3 3 . . Haulers Reinforced 1 | . . . . . . . . . . . . . . . . . . . . . 1 . . . . Active Scanning Responses . | . . . . . . . . . . . . . . . . . . . . . . . . . . Cargo Convoy Interrupts 1 | . . . . . . . . . . . . . . . . . . . . . . . 1 . . Stealth | -11 -10 -9 -8 -8 -8 -8 -6 -6 -5 -5 -5 -5 -5 -5 -5 -4 -4 -4 -4 -3 -3 -3 -2 -2 -2 --------- Run | Yrd Mat Mat Mat Sto Rec Scr Fac DSF Fac Was Fac Ext Cet Arc Hub Fac Upp Upp War Pro Res Tes Res Qua Frg Distress Signals 28 | . . 2 2 4 . . . . . . . . 1 . . 3 . . 2 . 6 . 4 2 2 Communications Jammed . | . . . . . . . . . . . . . . . . . . . . . . . . . . Distress Signals . | . . . . . . . . . . . . . . . . . . . . . . . . . . Times Spotted 470 | . 3 8 23 43 . . . 1 . 4 6 25 12 4 11 39 3 11 39 3 15 46 125 27 22 Peak Tracking Total 23 | . 3 4 18 23 . . . 1 . 4 5 4 5 1 8 10 2 9 20 2 5 7 18 14 11 Tactical Retreats 47 | . . 2 1 4 . . . 1 . . . 1 . . 1 1 . 4 1 . . 3 21 4 3 Traps | -11 -10 -9 -8 -8 -8 -8 -6 -6 -5 -5 -5 -5 -5 -5 -5 -4 -4 -4 -4 -3 -3 -3 -2 -2 -2 ------- Run | Yrd Mat Mat Mat Sto Rec Scr Fac DSF Fac Was Fac Ext Cet Arc Hub Fac Upp Upp War Pro Res Tes Res Qua Frg Traps Triggered 6 | . . . . 1 . . . 2 1 . . . . . . . . . 1 . . . 1 . . Indirectly . | . . . . . . . . . . . . . . . . . . . . . . . . . . Trap Hack Attempts . | . . . . . . . . . . . . . . . . . . . . . . . . . . Triggered . | . . . . . . . . . . . . . . . . . . . . . . . . . . Disarmed . | . . . . . . . . . . . . . . . . . . . . . . . . . . Reprogrammed . | . . . . . . . . . . . . . . . . . . . . . . . . . . Reused . | . . . . . . . . . . . . . . . . . . . . . . . . . . Traps Extracted . | . . . . . . . . . . . . . . . . . . . . . . . . . . Installed . | . . . . . . . . . . . . . . . . . . . . . . . . . . Triggered . | . . . . . . . . . . . . . . . . . . . . . . . . . . Machines | -11 -10 -9 -8 -8 -8 -8 -6 -6 -5 -5 -5 -5 -5 -5 -5 -4 -4 -4 -4 -3 -3 -3 -2 -2 -2 ---------- Run | Yrd Mat Mat Mat Sto Rec Scr Fac DSF Fac Was Fac Ext Cet Arc Hub Fac Upp Upp War Pro Res Tes Res Qua Frg Machines Disabled 45 | . . . 1 3 . . . . . . 3 . 2 3 4 16 . . 1 . . 5 6 1 . Max in Single Turn 3 | . . . 1 1 . . . . . . . . 1 1 3 2 . . 1 . . 1 1 1 . Garrison Access 3 | . . . . 1 . . . . . . . . . . . . . . . . . 1 . 1 . Network Hub 1 | . . . . . . . . . . . . . . . 1 . . . . . . . . . . Machines Repaired . | . . . . . . . . . . . . . . . . . . . . . . . . . . Machines Dismantled 3 | . . . . . . . . . . . . . 1 . . . . . 1 . . 1 . . . Machines Sabotaged . | . . . . . . . . . . . . . . . . . . . . . . . . . . Overloaded Fab Kills . | . . . . . . . . . . . . . . . . . . . . . . . . . . Hacking | -11 -10 -9 -8 -8 -8 -8 -6 -6 -5 -5 -5 -5 -5 -5 -5 -4 -4 -4 -4 -3 -3 -3 -2 -2 -2 --------- Run | Yrd Mat Mat Mat Sto Rec Scr Fac DSF Fac Was Fac Ext Cet Arc Hub Fac Upp Upp War Pro Res Tes Res Qua Frg Machines Accessed 45 | . . . 2 7 . . 1 . 1 . 1 4 . . . 3 . . 1 . 2 5 9 7 2 Terminals 23 | . . . 1 4 . . 1 . 1 . . 4 . . . 2 . . . . . 2 4 3 1 Fabricators 6 | . . . . . . . . . . . 1 . . . . . . . . . . 2 3 . . Repair Stations 4 | . . . . 2 . . . . . . . . . . . . . . . . 1 . . 1 . Recycling Units 2 | . . . . . . . . . . . . . . . . . . . . . 1 . 1 . . Scanalyzers 5 | . . . 1 . . . . . . . . . . . . 1 . . . . . . . 2 1 Garrison Access 4 | . . . . 1 . . . . . . . . . . . . . . . . . 1 1 1 . Total Hacks 97 | . . . 6 10 . . 1 . 2 . 2 6 . . . 7 . . 1 . 2 14 20 24 2 Successful 28 | . . . 2 5 . . 1 . 1 . . 3 . . . 1 . . 1 . 2 2 2 8 . Failed 67 | . . . 3 5 . . . . 1 . 2 3 . . . 5 . . . . . 12 18 16 2 Catastrophic 21 | . . . . 2 . . . . 1 . 1 . . . . 2 . . . . . 4 5 4 2 Database Lockouts 2 | . . . 1 . . . . . . . . . . . . 1 . . . . . . . . . Manual 46 | . . . 3 4 . . . . 1 . 2 2 1 . . 2 . . . . 2 9 12 7 1 Terminals 51 | . . . 3 6 . . 1 . 2 . . 6 . . . 5 . . . . . 11 8 8 1 Fabricators 13 | . . . . . . . . . . . 2 . . . . . . . . . . 2 9 . . Repair Stations 5 | . . . . 2 . . . . . . . . . . . . . . . . 1 . . 2 . Recycling Units 3 | . . . . . . . . . . . . . . . . . . . . . 1 . 2 . . Scanalyzers 18 | . . . 3 . . . . . . . . . . . . 2 . . . . . . . 12 1 Garrison Access 6 | . . . . 2 . . . . . . . . . . . . . . . . . 1 1 2 . Terminal Hacks 9 | . . . 1 3 . . 1 . . . . 2 . . . . . . 1 . . . 1 . . Open Door 7 | . . . . 3 . . . . . . . 2 . . . . . . 1 . . . 1 . . Open DSF 1 | . . . . . . . 1 . . . . . . . . . . . . . . . . . . Branch Access Points 1 | . . . 1 . . . . . . . . . . . . . . . . . . . . . . Fabricator Hacks . | . . . . . . . . . . . . . . . . . . . . . . . . . . Repair Station Hacks . | . . . . . . . . . . . . . . . . . . . . . . . . . . Recycling Unit Hacks . | . . . . . . . . . . . . . . . . . . . . . . . . . . Scanalyzer 8 | . . . 1 . . . . . . . . . . . . 1 . . . . . . . 6 . Retrieve Study 8 | . . . 1 . . . . . . . . . . . . 1 . . . . . . . 6 . Garrison Access Hacks 1 | . . . . . . . . . . . . . . . . . . . . . . . . 1 . Seal Access 1 | . . . . . . . . . . . . . . . . . . . . . . . . 1 . Unauthorized Hacks 10 | . . . . 2 . . . . 1 . . 1 . . . . . . . . 2 2 1 1 . Terminals 4 | . . . . . . . . . 1 . . 1 . . . . . . . . . 1 . 1 . Assimilate 2 | . . . . . . . . . 1 . . . . . . . . . . . . . . 1 . Botnet 2 | . . . . . . . . . . . . 1 . . . . . . . . . 1 . . . Fabricators . | . . . . . . . . . . . . . . . . . . . . . . . . . . Repair Stations 3 | . . . . 2 . . . . . . . . . . . . . . . . 1 . . . . Patch 3 | . . . . 2 . . . . . . . . . . . . . . . . 1 . . . . Recycling Units 2 | . . . . . . . . . . . . . . . . . . . . . 1 . 1 . . Fedlink 1 | . . . . . . . . . . . . . . . . . . . . . 1 . . . . Scrapoids 1 | . . . . . . . . . . . . . . . . . . . . . . . 1 . . Scanalyzers . | . . . . . . . . . . . . . . . . . . . . . . . . . . Garrison Access 1 | . . . . . . . . . . . . . . . . . . . . . . 1 . . . Jam 1 | . . . . . . . . . . . . . . . . . . . . . . 1 . . . Data Cores Recovered . | . . . . . . . . . . . . . . . . . . . . . . . . . . Used . | . . . . . . . . . . . . . . . . . . . . . . . . . . Hacking Detections 31 | . . . 1 3 . . 1 . 1 . 1 4 . . . 2 . . . . . 4 7 5 2 Full Trace Events 4 | . . . . 2 . . . . . . . 1 . . . . . . . . . . 1 . . Feedback Events . | . . . . . . . . . . . . . . . . . . . . . . . . . . Feedback Blocked . | . . . . . . . . . . . . . . . . . . . . . . . . . . Robot Schematics Acquired 4 | . . . . . . . . . . . . . . . . . . . . . . 4 . . . Robots Built . | . . . . . . . . . . . . . . . . . . . . . . . . . . Authchips . | . . . . . . . . . . . . . . . . . . . . . . . . . . Time . | . . . . . . . . . . . . . . . . . . . . . . . . . . Total Robot Build Rating . | . . . . . . . . . . . . . . . . . . . . . . . . . . Part Schematics Acquired 11 | . . . . . . . . . . . . . . . . . . . . . . 8 . 3 . Parts Built . | . . . . . . . . . . . . . . . . . . . . . . . . . . Authchips . | . . . . . . . . . . . . . . . . . . . . . . . . . . Time . | . . . . . . . . . . . . . . . . . . . . . . . . . . Total Part Build Rating . | . . . . . . . . . . . . . . . . . . . . . . . . . . Part Studies Acquired 8 | . . . 1 . . . . . . . . . . . . 1 . . . . . . . 6 . Parts Repaired . | . . . . . . . . . . . . . . . . . . . . . . . . . . Time . | . . . . . . . . . . . . . . . . . . . . . . . . . . Parts Recycled . | . . . . . . . . . . . . . . . . . . . . . . . . . . Recycled Matter . | . . . . . . . . . . . . . . . . . . . . . . . . . . Retrieved Matter . | . . . . . . . . . . . . . . . . . . . . . . . . . . Retrieved Components . | . . . . . . . . . . . . . . . . . . . . . . . . . . Parts Scanalyzed . | . . . . . . . . . . . . . . . . . . . . . . . . . . Part Schematics Acquired . | . . . . . . . . . . . . . . . . . . . . . . . . . . Parts Damaged . | . . . . . . . . . . . . . . . . . . . . . . . . . . Bothacking | -11 -10 -9 -8 -8 -8 -8 -6 -6 -5 -5 -5 -5 -5 -5 -5 -4 -4 -4 -4 -3 -3 -3 -2 -2 -2 ------------ Run | Yrd Mat Mat Mat Sto Rec Scr Fac DSF Fac Was Fac Ext Cet Arc Hub Fac Upp Upp War Pro Res Tes Res Qua Frg Used RIF Installer . | . . . . . . . . . . . . . . . . . . . . . . . . . . Robots Hacked 2 | . . . . . . . . . . . . . . . . . . . . . . 2 . . . Non-combat 1 | . . . . . . . . . . . . . . . . . . . . . . 1 . . . Combat 1 | . . . . . . . . . . . . . . . . . . . . . . 1 . . . Robot Hacks Applied 2 | . . . . . . . . . . . . . . . . . . . . . . 2 . . . parse_system 2 | . . . . . . . . . . . . . . . . . . . . . . 2 . . . Relay Couplers Released 5 | . . . . 2 . . . . . . . . . . . . . . . . . . 3 . . Machine Destruction 2 | . . . . 2 . . . . . . . . . . . . . . . . . . . . . Programmers 3 | . . . . . . . . . . . . . . . . . . . . . . . 3 . . Fabnet Peak Effective % . | . . . . . . . . . . . . . . . . . . . . . . . . . . Robots Rewired 5 | . . . . . . . . . . . . 4 . . . . . . . . . 1 . . . Allies Hacked . | . . . . . . . . . . . . . . . . . . . . . . . . . . Hacks Repelled . | . . . . . . . . . . . . . . . . . . . . . . . . . . Allies | -11 -10 -9 -8 -8 -8 -8 -6 -6 -5 -5 -5 -5 -5 -5 -5 -4 -4 -4 -4 -3 -3 -3 -2 -2 -2 -------- Run | Yrd Mat Mat Mat Sto Rec Scr Fac DSF Fac Was Fac Ext Cet Arc Hub Fac Upp Upp War Pro Res Tes Res Qua Frg Total Allies 47 | . . . . 10 . . . . . 19 . 6 5 . . . . . . . . 1 5 1 . Largest Group 19 | . . . . 10 . . . . . 19 13 14 16 16 14 7 . . . . . 1 5 1 . Highest-Rated Group 973 | . . . . 173 . . . . . 702 536 613 973 973 767 538 . . . . . 114 323 26 . Highest-Rated Ally 159 | . . . . 29 . . . . . 50 50 159 159 159 96 96 . . . . . 114 67 26 . Total Orders 12 | . . . . . . . . . . . . . . . . 5 . . . . . 7 . . . EXPLORE 12 | . . . . . . . . . . . . . . . . 5 . . . . . 7 . . . Ally Attacks 659 | . . . . 48 . . . . . 83 24 150 75 34 66 54 . . . . . 30 95 . . Total Damage 21519 | . . . . 687 . . . . . 4738 1256 3752 1526 650 1659 2778 . . . . . 1508 2965 . . Kills 106 | . . . . 9 . . . . . 11 8 21 6 3 10 17 . . . . . 10 11 . . Allies Corrupted 2 | . . . . . . . . . . . . . . . 1 . . . . . . 1 . . . Allies Melted . | . . . . . . . . . . . . . . . . . . . . . . . . . . Intel | -11 -10 -9 -8 -8 -8 -8 -6 -6 -5 -5 -5 -5 -5 -5 -5 -4 -4 -4 -4 -3 -3 -3 -2 -2 -2 ------- Run | Yrd Mat Mat Mat Sto Rec Scr Fac DSF Fac Was Fac Ext Cet Arc Hub Fac Upp Upp War Pro Res Tes Res Qua Frg Active Infowar (turns) 4710 | . . . . . 28 318 14 66 147 188 268 1144 564 294 169 683 . . . . . . 411 243 173 Optics 4710 | . . . . . 28 318 14 66 147 188 268 1144 564 294 169 683 . . . . . . 411 243 173 Sensors 470 | . . . . . . . . . . . . . . . . . . . . . . . 246 224 . Machine Analysis 327 | . . . . . . . . . . . . . . . . . . . . . . . . 154 173 Triangulation 545 | . . . . . . . . . . . . . . . . . . . . . . . 161 243 141 Cloaking 104 | . . . . . . . . . . . . . . . . . . . . . . . . 104 . Robot Analysis Total . | . . . . . . . . . . . . . . . . . . . . . . . . . . Derelict Logs Recovered 3 | . . . . . . . . . . . . . . . . . 1 2 . . . . . . . Drone Launches 26 | . . . . . . . . . . . . . . . . 15 . . . . . 11 . . . Drone Recoveries 16 | . . . . . . . . . . . . . . . . 5 . . . . . 11 . . . Exploration | -11 -10 -9 -8 -8 -8 -8 -6 -6 -5 -5 -5 -5 -5 -5 -5 -4 -4 -4 -4 -3 -3 -3 -2 -2 -2 ------------- Run | Yrd Mat Mat Mat Sto Rec Scr Fac DSF Fac Was Fac Ext Cet Arc Hub Fac Upp Upp War Pro Res Tes Res Qua Frg Turns Passed 11845 | 21 59 189 167 281 46 318 14 66 147 503 268 1144 564 294 169 870 480 369 590 378 902 1267 2323 243 173 Spaces Moved 9560 | 39 116 340 223 409 128 512 25 79 101 422 158 656 200 102 81 401 316 331 495 293 631 721 1801 616 364 Core 1530 | 39 116 340 120 179 . 72 23 77 10 194 . . . . . . . 214 146 . . . . . . Treads 1651 | . . . . 1 . . . 2 54 228 158 656 200 102 81 169 . . . . . . . . . Legs 3730 | . . . . . . 68 . . 37 . . . . . . 218 316 117 349 293 631 721 980 . . Wheels 194 | . . . 103 77 . . . . . . . . . . . 14 . . . . . . . . . Hover . | . . . . . . . . . . . . . . . . . . . . . . . . . . Flight 2455 | . . . . 152 128 372 2 . . . . . . . . . . . . . . . 821 616 364 Fastest Speed 24 | 50 50 50 50 35 35 35 50 50 100 50 145 145 145 225 155 100 120 50 50 117 115 100 31 24 26 Average Speed 92 | 50 50 50 59 51 35 58 54 57 139 101 145 145 205 225 165 136 120 74 99 117 117 109 83 26 30 Slowest Speed 330 | 50 50 50 70 158 35 102 102 160 160 145 145 145 225 225 232 330 120 120 120 117 118 240 190 31 67 Overloaded Moves 51 | . . . . . . . . . . . . . . . . . . . . . . . . 4 47 Propulsion Burnouts . | . . . . . . . . . . . . . . . . . . . . . . . . . . Robots Hopped 38 | . . . . 6 2 . . . . . . . . . . . . . . . . . 11 14 5 Potential Cave-ins 1 | . . . . . . . . . . . . . . . . . . . . . . . 1 . . Cave-ins Triggered . | . . . . . . . . . . . . . . . . . . . . . . . . . . Teleports 1 | . . . . . . . . . . . . . . . . . . . . . . . . . 1 Exploration Rate (%) 46 | 3 38 36 30 70 39 41 3 92 2 93 5 74 73 82 14 20 54 53 84 53 30 97 29 79 24 Regions Visited 25 Branch Regions 14 Pre-discovered Areas . | . . . . . . . . . . . . . . . . . . . . . . . . . . Known Exits Taken 6 | . . . 1 . . . 1 . . . . . . . . . . . . 1 1 . 1 1 . Unknown Exits Taken 16 | 1 1 1 . 1 1 1 . . . . 1 1 1 1 1 1 1 1 1 . . 1 . . . Scrap Searched 6 | . . . . . . 2 . . . . . . . . . . 1 1 . 2 . . . . . Spaces Dug 177 | . . . . . . . . . . . . . . . 142 . . . . . . 4 18 7 6 Terrain Destroyed 421 | . . . . . . . . . . . . 1 1 2 149 8 9 . 49 26 48 41 74 7 6 Melee 23 | . . . . . . . . . . . . . . . . . . . . . . . 10 7 6 Projectile 182 | . . . . . . . . . . . . 1 1 2 10 8 8 . 41 23 43 22 23 . . AOE 214 | . . . . . . . . . . . . . . . 138 . . . 8 3 5 19 41 . . Terrain Rammed . | . . . . . . . . . . . . . . . . . . . . . . . . . . Walls Destroyed . | . . . . . . . . . . . . . . . . . . . . . . . . . . Machines Disabled . | . . . . . . . . . . . . . . . . . . . . . . . . . . Actions | -11 -10 -9 -8 -8 -8 -8 -6 -6 -5 -5 -5 -5 -5 -5 -5 -4 -4 -4 -4 -3 -3 -3 -2 -2 -2 --------- Run | Yrd Mat Mat Mat Sto Rec Scr Fac DSF Fac Was Fac Ext Cet Arc Hub Fac Upp Upp War Pro Res Tes Res Qua Frg Total 11531 | 39 116 357 249 455 126 527 25 100 107 500 198 799 327 160 99 587 359 442 551 304 714 1026 2295 656 413 Wait 664 | 1 . 9 . 10 . 1 . 4 . 46 35 30 85 47 3 8 6 98 4 . 13 72 135 22 35 Move 9466 | 38 115 339 222 396 123 511 24 78 101 421 157 655 199 101 80 400 315 330 494 292 630 720 1783 588 354 Hop 31 | . . . . 6 2 . . . . . . . . . . . . . . . . . 6 13 4 Pick Up 160 | . 1 5 5 . . 2 . 2 2 11 4 10 6 1 2 16 . . 1 . 9 33 46 4 . Fast Attach 162 | . . 3 7 9 1 7 . 8 2 7 . 3 1 . 1 22 1 1 11 2 7 23 42 4 . Attach 86 | . . . 1 1 . 2 . . 1 1 . 1 . . . 13 . 1 1 . . 22 33 4 5 Detach 30 | . . . . 2 . 1 . . 1 2 . . . . . 2 . . 2 . . 7 11 . 2 Swap 72 | . . . . . . 1 . 1 . 1 . 7 6 4 1 7 1 1 3 . 6 16 17 . . Drop 209 | . . 1 5 9 . 2 1 5 . 11 2 19 11 3 3 20 1 4 10 . 11 30 52 5 4 Fire 431 | . . . . . . . . . . . . 16 11 4 9 93 35 7 16 10 36 85 109 . . Melee 88 | . . . 4 10 . . . . . . . 14 . . . . . . . . . . 36 16 8 Ram 12 | . . . 5 6 . . . . . . . . . . . . . . . . . . 1 . . Kick 36 | . . . . . . . . . . . . . . . . 2 . . . . 2 8 24 . . Crush . | . . . . . . . . . . . . . . . . . . . . . . . . . . Escape Stasis 5 | . . . . 2 . . . 2 . . . . . . . . . . . . . . . . 1 Rewire 51 | . . . . 4 . . . . . . . 44 . . . . . . . . . 3 . . . Trap . | . . . . . . . . . . . . . . . . . . . . . . . . . . Miscellaneous 28 | . . . . . . . . . . . . . 8 . . 4 . . 9 . . 7 . . . Route ------- -11/Scrapyard -10/Materials -9/Materials (discovered 2 exits: *Mat / [*Min]) -8/Materials (discovered 2 exits: *Sto x2) -8/Storage (discovered 2 exits: [*Fac] / [*Rec]) -8/Recycling -8/Scraptown -6/Factory -6/DSF -5/Factory -5/Waste -5/Factory -5/Extension (discovered 2 exits: *Fac / *Cet) -5/Cetus (discovered 2 exits: *Fac / [*Arc]) -5/Archives (discovered 3 exits: *Fac / [*Hub x2]) -5/Hub_04(d) -4/Factory -4/Upper Caves -4/Upper Caves -4/Warlord -3/Proximity Caves -3/Research (discovered 2 exits: [*Arm] / *Tes) -3/Testing -2/Research (discovered 3 exits: [*Acc] / *Qua x2) -2/Quarantine (discovered 3 exits: [*Acc] / [*Sec] / *Frg) -2/Protoforge History --------- Turn | Location | Event 9 | -11/Scrapyard | Discovered new exit (range 15) 22 | -11/Scrapyard | Entered Materials 77 | -10/Materials | Discovered new exit (range 9) 81 | -10/Materials | Entered another Materials area 81 | -9/Materials | Evolved 2 slots: Propulsion x2 193 | -9/Materials | Discovered new exit (range 15) 268 | -9/Materials | Discovered new exit (range 6) 270 | -9/Materials | Entered another Materials area 270 | -8/Materials | Evolved 2 slots: Propulsion x2 308 | -8/Materials | Central database locked down 339 | -8/Materials | System corruption reached 10% 350 | -8/Materials | Identified exit to Storage 359 | -8/Materials | Build established: Mutant 437 | -8/Materials | Entered Storage 461 | -8/Storage | Lost 3 parts (2n1u) 623 | -8/Storage | Assisted by bots powering up and referring to "LRC-V3" 645 | -8/Storage | Discovered new exit (range 16) 650 | -8/Storage | Found Prototype Protection 650 | -8/Storage | Identified Lgt. Regenerative Plating 668 | -8/Storage | Core integrity fell below 50% 678 | -8/Storage | Lost 3 parts (3n) 702 | -8/Storage | Lost 10 allies 717 | -8/Storage | Used back door to open Recycling access 717 | -8/Storage | Discovered new exit (range 3) 718 | -8/Storage | Entered Recycling 756 | -8/Recycling | Scanned before Scraplab entrance 761 | -8/Recycling | Entered Scraplab 764 | -8/Recycling | Discovered new exit (range 2) 764 | -8/Recycling | Entered Scraptown 765 | -8/Scraptown | System corruption cleaned by C-Scrubber 787 | -8/Scraptown | Visited UFD Registry 787 | -8/Scraptown | Registered with UFD as "Chainspawn" 800 | -8/Scraptown | Visited Scrap Suit Storage 840 | -8/Scraptown | Visited Research Penetration Think Tank 860 | -8/Scraptown | Visited Supply Room 887 | -8/Scraptown | Visited DA-N13 Charitable Foundation 889 | -8/Scraptown | Found DCF Scrap (28 items) 909 | -8/Scraptown | Visited Infowarlord's Domain 913 | -8/Scraptown | Found Exp. Terrain Scanner 1021 | -8/Scraptown | Met Optimus 1021 | -8/Scraptown | Accepted into 0bPrime 1080 | -8/Scraptown | Discovered new exit (range 3) 1082 | -8/Scraptown | Entered Factory 1082 | -6/Factory | Evolved 4 slots: Power x1, Utility x3 1096 | -6/Factory | Identified exit to DSF 1096 | -6/Factory | Entered DSF 1117 | -6/DSF | Additional patrols routed to DSF 1121 | -6/DSF | Discovered new exit (range 18) 1162 | -6/DSF | Entered Factory 1162 | -5/Factory | Evolved 2 slots: Utility x2 1167 | -5/Factory | Lost 3 parts (2n1u) 1309 | -5/Factory | Sucked down chute 1309 | -5/Factory | Entered Waste 1324 | -5/Waste | Spotted C-40 Crusher 1336 | -5/Waste | Spotted C-40 Crusher 1336 | -5/Waste | Spotted C-40 Crusher 1337 | -5/Waste | Spotted C-40 Crusher 1380 | -5/Waste | Spotted C-40 Crusher 1391 | -5/Waste | Warlord forces began an assault 1531 | -5/Waste | Spotted C-40 Crusher 1683 | -5/Waste | Found Damper Plating 1765 | -5/Waste | Discovered new exit (range 22) 1812 | -5/Waste | Entered Factory 1812 | -5/Factory | Accompanied by 13 allies 1860 | -5/Factory | Build established: Gladiator 1927 | -5/Factory | Lost 3 allies 2023 | -5/Factory | Discovered new exit (range 14) 2080 | -5/Factory | Entered Extension 2080 | -5/Extension | Accompanied by 10 allies 2208 | -5/Extension | Spotted B-75 Beast 2220 | -5/Extension | Spotted B-75 Beast 2233 | -5/Extension | Allies destroyed B-75 Beast 2253 | -5/Extension | Allies destroyed B-75 Beast 2368 | -5/Extension | Rescued A7 2462 | -5/Extension | Rescued a captive Derelict 2719 | -5/Extension | Build established: Scavenger-Mutant 3177 | -5/Extension | Discovered new exit (range 22) 3178 | -5/Extension | Discovered new exit (range 21) 3224 | -5/Extension | Entered Cetus 3224 | -5/Cetus | Accompanied by 14 allies (A7) 3229 | -5/Cetus | Acquired a Cetus Manufacturing Module code from A7 3240 | -5/Cetus | Spotted Cetus Guard 3240 | -5/Cetus | Spotted Cetus Guard 3240 | -5/Cetus | Spotted Cetus Guard 3240 | -5/Cetus | Spotted Cetus Guard 3257 | -5/Cetus | Allies destroyed Cetus Guard 3261 | -5/Cetus | Allies destroyed Cetus Guard 3265 | -5/Cetus | Allies destroyed Cetus Guard 3267 | -5/Cetus | Allies destroyed Cetus Guard 3419 | -5/Cetus | Started Cetus Manufacturing Module 3433 | -5/Cetus | Discovered new exit (range 22) 3444 | -5/Cetus | Manufactured an Enhanced Grunt 3469 | -5/Cetus | Manufactured an Enhanced Grunt 3477 | -5/Cetus | Spotted Cetus Guard 3477 | -5/Cetus | Spotted Cetus Guard 3480 | -5/Cetus | Spotted Cetus Guard 3480 | -5/Cetus | Spotted Cetus Guard 3487 | -5/Cetus | Allies destroyed Cetus Guard 3490 | -5/Cetus | Discovered new exit (range 22) 3493 | -5/Cetus | Destroyed Cetus Guard 3494 | -5/Cetus | Manufactured an Enhanced Grunt 3502 | -5/Cetus | Destroyed Cetus Guard 3505 | -5/Cetus | Destroyed Cetus Guard 3519 | -5/Cetus | Manufactured an Enhanced Grunt 3530 | -5/Cetus | Met Revision 17 3532 | -5/Cetus | Lost 3 allies 3544 | -5/Cetus | Manufactured an Enhanced Grunt 3685 | -5/Cetus | Escorted A7 to Cetus Mainframe 3764 | -5/Cetus | Build established: Commander-Mutant 3788 | -5/Cetus | Entered Archives 3788 | -5/Archives | Accompanied by 16 allies (A7) 3793 | -5/Archives | Received a hacking code to weaken MAIN.C 3836 | -5/Archives | Discovered new exit (range 21) 3908 | -5/Archives | Discovered new exit (range 22) 3987 | -5/Archives | Discovered new exit (range 15) 4082 | -5/Archives | Entered Hub_04(d) 4082 | -5/Hub_04(d) | Accompanied by 14 allies 4125 | -5/Hub_04(d) | Discovered new exit (range 18) 4196 | -5/Hub_04(d) | Lost 5 allies 4248 | -5/Hub_04(d) | Network Hub disabled 4251 | -5/Hub_04(d) | Entered Factory 4251 | -4/Factory | Accompanied by 7 allies 4251 | -4/Factory | Evolved 2 slots: Weapon x2 4501 | -4/Factory | First assault squad dispatched 4550 | -4/Factory | Build established: Scavenger-Tank 4666 | -4/Factory | Lost 12 parts (1p3n3u5w) 4890 | -4/Factory | Central database locked down 5031 | -4/Factory | Discovered new exit (range 16) 5121 | -4/Factory | Entered Upper Caves 5352 | -4/Upper Caves | Build established: Scavenger-Gunner 5408 | -4/Upper Caves | Learned 8 Research zone layouts 5527 | -4/Upper Caves | Discovered new exit (range 5) 5601 | -4/Upper Caves | Entered another Upper Caves area 5658 | -4/Upper Caves | Learned Research trap positions 5727 | -4/Upper Caves | Attracted the attention of an 0b10 outpost 5794 | -4/Upper Caves | Lost 5 parts (2p3w) 5807 | -4/Upper Caves | Learned location of 1 exit from Proximity Caves 5811 | -4/Upper Caves | Discovered new exit (range 12) 5970 | -4/Upper Caves | Entered Warlord 5987 | -4/Warlord | System corruption cleaned by Quarantine Array 6022 | -4/Warlord | Rebuked by Warlord 6047 | -4/Warlord | Warlord's base attacked by MAIN.C 6071 | -4/Warlord | Found Prototype Reactor 6071 | -4/Warlord | Identified Vortex Chain Reactor 6090 | -4/Warlord | Found Prototype Processor 6090 | -4/Warlord | Identified Exp. Armor Integrity Analyzer 6188 | -4/Warlord | Found Prototype Energy Cannon 6188 | -4/Warlord | Identified Vortex Cannon 6191 | -4/Warlord | Found Vortex Cannon 6198 | -4/Warlord | Found Prototype Energy Gun 6198 | -4/Warlord | Identified Vortex Rail 6201 | -4/Warlord | Found Vortex Rail 6397 | -4/Warlord | Warlord forces counterattacked 6458 | -4/Warlord | Lost 6 allies 6459 | -4/Warlord | Spotted Striker 6459 | -4/Warlord | Spotted Executioner 6488 | -4/Warlord | Destroyed Z4-UO9(g) 6519 | -4/Warlord | Lost 12 allies 6530 | -4/Warlord | Destroyed 7 combat bots 6547 | -4/Warlord | Spotted Executioner 6547 | -4/Warlord | Spotted Executioner 6547 | -4/Warlord | Spotted Executioner 6547 | -4/Warlord | Spotted Striker 6551 | -4/Warlord | Discovered new exit (range 9) 6560 | -4/Warlord | Entered Proximity Caves 6561 | -3/Proximity Caves | Identified exit to Research 6587 | -3/Proximity Caves | Lost 6 allies 6689 | -3/Proximity Caves | Spotted B-86 Titan 6714 | -3/Proximity Caves | Destroyed B-86 Titan 6938 | -3/Proximity Caves | Entered Research 6938 | -3/Research | Evolved 2 slots: Utility x1, Weapon x1 6939 | -3/Research | Identified exit to Testing 6940 | -3/Research | Loaded intel: 65 trap records 7138 | -3/Research | Revision forces began assault on 0b10 7171 | -3/Research | Met up with Revision 17++ 7325 | -3/Research | Discovered new exit (range 11) 7383 | -3/Research | Found Spectral Analyzer 7551 | -3/Research | Found Gamma Bomb Array 7638 | -3/Research | Research terminal network offline 7739 | -3/Research | Spotted Striker 7742 | -3/Research | Destroyed Striker 7786 | -3/Research | Loaded intel: 5 recycling unit locations 7840 | -3/Research | Entered Testing 7916 | -3/Testing | Rewired PL-ZJCPUY28C1 7999 | -3/Testing | Garrison activated, responded to threat 8026 | -3/Testing | Discovered new exit (range 49) 8035 | -3/Testing | Spotted PP-QO5OIGKLMK 8118 | -3/Testing | Found Prototype Device 8252 | -3/Testing | Identified Exp. Shield Generator 8283 | -3/Testing | Spotted Alpha 7 8286 | -3/Testing | Spotted Striker 8287 | -3/Testing | Spotted Striker 8340 | -3/Testing | Found Spectral Analyzer 8424 | -3/Testing | Scanned by Researcher 8438 | -3/Testing | Found Prototype Device 8438 | -3/Testing | Identified Exp. Hardlight Generator 8530 | -3/Testing | System corruption reached 10% 8588 | -3/Testing | Unstable Terrabomb Derivative detonated 8701 | -3/Testing | Lost 8 parts (1p1n1u5w) 8701 | -3/Testing | System corruption reached 30% 8824 | -3/Testing | Lost 11 parts (1p4n1u5w) 8988 | -3/Testing | Found Prototype Energy Gun 8988 | -3/Testing | Identified Tachyon Dispersion Ray 9107 | -3/Testing | Entered Research 9107 | -2/Research | Evolved 2 slots: Utility x2 9242 | -2/Research | Discovered new exit (range 4) 9297 | -2/Research | Found Gamma Bomb Array 9472 | -2/Research | Destroyed 9 combat bots 9590 | -2/Research | Destroyed 7 combat bots 9591 | -2/Research | Lost 6 parts (3u3w) 9607 | -2/Research | First assault squad dispatched 9631 | -2/Research | Lost 6 parts (3n1u2w) 9740 | -2/Research | Lost 3 parts (1u2w) 9756 | -2/Research | Destroyed 8 combat bots 9854 | -2/Research | Scrapoids reinforcements arrived? 10244 | -2/Research | Cargo convoy interrupted 10265 | -2/Research | Spotted B-90 Cyclops 10277 | -2/Research | Destroyed B-90 Cyclops 10324 | -2/Research | Garrison activated, responded to threat 10395 | -2/Research | Lost 5 allies 10458 | -2/Research | Found Prototype Ballistic Gun 10458 | -2/Research | Identified Multirail 10474 | -2/Research | System corruption reached 10% 10630 | -2/Research | Lost 3 parts (1u2w) 10730 | -2/Research | Build established: Scavenger-Tank 10741 | -2/Research | Discovered new exit (range 11) 10823 | -2/Research | Lost 7 parts (1n3u3w) 10972 | -2/Research | System corruption reached 30% 11005 | -2/Research | Lost 13 parts (2p4n2u5w) 11007 | -2/Research | Core integrity fell below 50% 11421 | -2/Research | Build established: Ninja 11428 | -2/Research | Discovered new exit (range 9) 11430 | -2/Research | Identified exit to Quarantine 11430 | -2/Research | Entered Quarantine 11495 | -2/Quarantine | Found Alien Energy Cannon 11498 | -2/Quarantine | Discovered new exit (range 5) 11642 | -2/Quarantine | Found Alien Artifact 11645 | -2/Quarantine | Core integrity fell below 20% 11653 | -2/Quarantine | Spotted Fortress 11672 | -2/Quarantine | Discovered new exit (range 6) 11672 | -2/Quarantine | Discovered new exit (range 6) 11673 | -2/Quarantine | Identified exit to Protoforge 11673 | -2/Quarantine | Entered Protoforge 11681 | -2/Protoforge | Superfortress began startup sequence 11685 | -2/Protoforge | Lost 3 parts (1p2u) 11728 | -2/Protoforge | Identified Transdimensional Reconstructor 11728 | -2/Protoforge | Warped through subspace 11734 | -2/Protoforge | Spotted Hotshot 11734 | -2/Protoforge | Spotted Hotshot 11734 | -2/Protoforge | Spotted Hotshot 11746 | -2/Protoforge | Identified Core Cannon 11790 | -2/Protoforge | Spotted Overlord 11812 | -2/Protoforge | Spotted Decapitator 11812 | -2/Protoforge | Spotted Decapitator 11812 | -2/Protoforge | Spotted Decapitator 11812 | -2/Protoforge | Spotted Decapitator 11812 | -2/Protoforge | Spotted Decapitator 11812 | -2/Protoforge | Spotted AP7-3 11812 | -2/Protoforge | Spotted AP7-3 11841 | -2/Protoforge | Spotted Decapitator 11841 | -2/Protoforge | Spotted Decapitator 11842 | -2/Protoforge | Spotted EXE-6 11842 | -2/Protoforge | Spotted EXE-6 11846 | -2/Protoforge | Destroyed by Decapitator with Experimental Terror Saw Last Messages --------------- 11831_ Penetrated by Slug. 11831_ Slug penetrates FP Insight Station. 11831_ FP Insight Station damaged. 11831_ Decapitator system corruption misinterpreted. 11831_ Decapitator triggered Shock Trap. 11831_ The floor emits a surge of raw power. 11833_ K-01 Serf collects debris. 11834_ P-80 Master resets Decapitator, system corruption cleaned. 11834_ Penetrated by Slug. 11836_ Hvy. Shield Leg+ destroyed. 11836_ K-01 Serf collects debris. 11841_ System corrupted: Heat flow error (+139). 11841_ M-36 Artificer repairs Decapitator. 11843_ K-01 Serf collects debris. 11845_ Hvy. Shield Leg+ destroyed. 11845_ System corrupted: Slammed into ceiling. 11845_ Impulse Thruster+ destroyed. 11845_ System corrupted by crushing effect (+5). Map ----- +----------------------------------------------------+ | " """"""""""""""?????????????????? | | " "" """"""""""""""""????????????????? | | """"" " """"""""""""""""""???????????????? | | "" "" " """""""""""""""""""??????????????? | | "" " "" """"""""""""""""""""?????????????? | | "" " """"""""""""""""""""""????????????? | | "" " """"""""""""""""""""""""??????????? | | " """"""""""""""""""""""""""????????? | | "" """""""""""""""""""""""""""???????? | | " " " """"""""""""""""""""""""""""??????? | | " "" """"""""""""""""""""""""""""??????? | | """ p " """""""""""""""""""""""""""""?????? | | " """ """m" " """""""""""""""""""""""""""""?????? | | "" pm " """"""""""""""""""""""""""""" ????? | | " """"""""""""""""""""""""""" ????? | | """"""""""""""""""""""""""" "????? | | """"""" "" """"""""""""""""""""""""""" ???? | | """ " " """"""""""""""""""""""""" ???? | | " " """"""""""""""""""""""" "" ??? | | "" """"""""""""""""""""" " ??? | | "" "" "" """"""""""""""""""" m ???? | | "" "" " "" c """"""""""""""""" "???????? | | "" """ "" """"""""""""""" "" "" ?? | | " " """""""""m "" ?? | | " "" """ c "" "" "????? | | " " """ "" " ""c"@ " "" "????? | | " """ " " " ?? | | "" " " """" """" " "?? | | " " "" " """ """ "" """""""""" "?? | | " " """" """ " ?? | | "" " " """ " "???" """ ??? | | "" ?" " " " ???? " "" ""??? | | " "" " ?????"""" " ""??? | | "" "" " """"" "" ????? " " ???? | | ?" " " " " ????? """"????? | | "" "" "?????? ???????? | | ? ? " "" cc """""?????? ?????? | | ???" "" """"""""""" ?????? "?????? | | ???"" " " " """""""??????? ?????? | | ????## E############################?????????????? | | ?????###?????????????????????????????????????????? | | ?????????????????????????????????????????????????? | | ?????????????????????????????????????????????????? | | ?????????????????????????????????????????????????? | | ?????????????????????????????????????????????????? | | ?????????????????????????????????????????????????? | | ?????????????????????????????????????????????????? | | ?????????????????????????????????????????????????? | | ?????????????????????????????????????????????????? | | ?????????????????????????????????????????????????? | +----------------------------------------------------+ Best States ------------- Heat Dissipation 158 Coolant Potential 120 Energy Generation 65 Energy Capacity 700 Matter Stores 300 Matter Capacity 300 Sight Range 24 Robot Scan Range 18 Terrain Scan Density 10 Cloak Strength 2 Power Amplification 20 Armor Coverage 1200 Resistance: KI 20 Resistance: TH 10 Power Shielding 66 Weapon Shielding 66 Weapon Cycling 20 Phase Shifting 10 Evasion (%) 76 Targeting Accuracy 6 Melee Accuracy 18 Launcher Accuracy 40 Target Analysis 12 Core Analysis 6 Armor Integrity Analysis 50 Recoil Reduction 5 Kinecelleration 40 Salvage Targeting 2 Defensive Hacking 10 Item Schematics ----------------- Enh. Armored Medium Treads | -3/Testing | Archive Exp. Energy Well | -3/Testing | Archive Com. Mass Driver | -3/Testing | Archive Diametric Drive | -3/Testing | Archive Gravity Neutralizer | -3/Testing | Archive Quantum Shading Machine | -3/Testing | Archive Lgt. Antimatter Cannon | -3/Testing | Archive Adv. EM Shield | -3/Testing | Archive Adv. Micro-nuke Launcher | -2/Quarantine | Archive Cld. Field Propulsion Drive | -2/Quarantine | Archive Lrn. Phase Cannon | -2/Quarantine | Archive Robot Schematics ------------------ Y-64 Sentinel | -3/Testing | Archive A-27 Freighter | -3/Testing | Archive B-74 Champion | -3/Testing | Archive S-43 Plague | -3/Testing | Archive Fabricated ------------ Nothing Repaired ---------- Nothing Studied --------- Wheel | -8/Materials | Hacked Coil Gun | -4/Factory | Hacked Impulse Thruster | -2/Quarantine | Hacked Q-thruster | -2/Quarantine | Hacked Field Propulsion Array | -2/Quarantine | Hacked Lance | -2/Quarantine | Hacked Lgt. Quantum Reactor | -2/Quarantine | Hacked Hvy. Shield Leg | -2/Quarantine | Hacked Alien Tech Used ----------------- Transdimensional Reconstructor Core Cannon Achievements -------------- None Challenges ------------ None Game ------ Seed GrenadeLongswordSpoofer Manual? 0 Play Time 02:04:45 Cumulative 417.2 hours Start 2025.11.19 @ 05:40:09 End 2025.11.19 @ 07:45:59 Sessions 1 Manual Loads 0 Difficulty Rogue Special Mode None Game No. 386 Rogue 386 Adventurer 0 Explorer 0 Win Type - Total 3 Types 2/1/0/0/0/0/0/0/0/0 Lore% 85 Gallery% 84 Achievement% 63 Wizard Run 0 Options --------- Layout 1 ASCII 0 Keyboard 0 Movement Numpad Keybinds 0 Fullscreen 1 Font 24/Smallcaps Map View 50x35 Zoom Use 0% Tactical HUD 1 Map Filters NONE Filters NONE Steam 1 RUN: e19fe11b-cb0a-481e-8a77-235dec0e8470